Cogmind - Beta 16.1 @@@ ROGUE MODE // 2026.03.24 @ 09:21:52 Player: Eggywontgrow Result: Destroyed by Y-45 Defender with Heavy Assault Rifle Performance ------------- Evolutions (0) 0 Regions Visited (3) 600 Robots Destroyed (32) 160 Value Destroyed (790) 790 Prototype IDs (0) 0 Alien Tech Used (0) 0 Bonus (0) 0 TOTAL SCORE: 1550 Bonus ------- None Cogmind --------- Core Integrity 0/250 Matter 251/300 Energy 97/100 System Corruption 0% Temperature Cool (9) Movement Treading (160) Location -10/Subcaves Parts ------- > --- POWER (1) -------- (None) > --- PROPULSION (2) --- Light Treads Spiked Treads > --- UTILITY (2) ------ Large Storage Unit Utility Shielding > --- WEAPON (2) ------- Beam Cannon Light Cannon > --- INVENTORY (15) --- Ion Engine Light Nuclear Core Light Treads High-capacity Battery (250) Sensor Array Terrain Scanner Terrain Scan Processor Seismic Detector Targeting Computer Propulsion Shielding Scrap Shield Hacking Suite Heavy EM Pulse Gun Grenade Launcher Peak State ------------ > --- POWER ------------ Light Ion Engine > --- PROPULSION ------- Light Treads Light Treads > --- UTILITY ---------- Small Storage Unit Improved Terrain Scanner > --- WEAPON ----------- Heavy EM Pulse Gun Heavy EM Pulse Gun > --- INVENTORY -------- Ion Engine Wheel Seismic Detector Trap Extractor Heavy EM Pulse Gun Heavy EM Pulse Gun Light Assault Rifle Light Assault Rifle [Rating: 12] Favorites ----------- Power Ion Engine Engine Ion Engine Propulsion Light Treads Treads Light Treads Utility Large Storage Unit Device Sensor Array Storage Large Storage Unit Protection Propulsion Shielding Weapon Heavy EM Pulse Gun Energy Gun Heavy EM Pulse Gun Energy Cannon Beam Cannon Ballistic Gun Light Assault Rifle Ballistic Cannon Light Cannon Build | -11 -10 -10 -10 ------- Run | Yrd Mat Min Sub Slots Evolved . | . . . . Power . | . . . . Propulsion . | . . . . Utility . | . . . . Weapon . | . . . . Parts Attached 21 | 8 8 1 4 Power 3 | 1 2 . . Engine 3 | 1 2 . . Core . | . . . . Reactor . | . . . . Propulsion 3 | 2 . . 1 Treads 3 | 2 . . 1 Leg . | . . . . Wheel . | . . . . Hover . | . . . . Flight . | . . . . Utility 7 | 3 2 1 1 Device 3 | 2 1 . . Storage 2 | 1 1 . . Processor . | . . . . Hackware . | . . . . Protection 2 | . . 1 1 Artifact . | . . . . Weapon 8 | 2 4 . 2 Energy Gun 3 | . 3 . . Energy Cannon 1 | . . . 1 Ballistic Gun 3 | 2 1 . . Ballistic Cannon 1 | . . . 1 Launcher . | . . . . Special Weapon . | . . . . Impact Weapon . | . . . . Slashing Weapon . | . . . . Piercing Weapon . | . . . . Special Melee Weapon . | . . . . Unidentified Prototypes . | . . . . Parts Lost 5 | . 2 2 1 Power 1 | . . . 1 Propulsion . | . . . . Utility 1 | . 1 . . Weapon 3 | . 1 2 . Highest Loss Streak 2 | . 1 2 1 To Critical Strikes . | . . . . Average Backups 10 | 2 8 14 13 Power 1 | . 1 2 2 Propulsion . | . . 1 1 Utility 5 | . 3 7 8 Weapon 3 | . 3 3 2 Tool/Special . | . . . . Unused Backups 15 | . 2 2 11 Power 2 | . . . 2 Propulsion 2 | . 1 . 1 Utility 8 | . . 2 6 Weapon 3 | . 1 . 2 Tool/Special . | . . . . Average Slot Usage (%) 99 | . 99 99 99 Engine 13 | . 14 14 13 Treads 27 | . 27 28 28 Device 12 | . 13 13 3 Storage 14 | . 14 14 14 Protection 1 | . . . 10 Energy Gun 20 | . 22 27 . Energy Cannon 1 | . . . 14 Ballistic Gun 3 | . 5 . . Ballistic Cannon 1 | . . . 13 Peak Build Rating 12 | 9 12 11 10 Average Rating 10 | 5 10 10 9 On Entrance 6 | . 9 10 7 Avg Prop Armor Cover (%) . | . . . . Naked Turns . | . . . . Heaviest Build 32 | 12 32 32 32 Greatest Support 40 | 40 40 40 40 Greatest Overweight (x) 1 | 1 . . . Average Overweight (x) . | . . . . Largest Inventory Capacity 15 | 8 15 15 15 Average Capacity 12 | 6 11 15 15 Most Carried 15 | 4 12 15 15 Average Carried 10 | 3 8 14 14 Final Capacity 15 | 8 15 15 15 Final Carried 15 | 4 12 15 15 Class Distribution -------------------- 100% | Mutant Dominant Class ---------------- Mutant | -10/Materials Mutant | -10/Mines Mutant | -10/Subcaves Resources | -11 -10 -10 -10 ----------- Run | Yrd Mat Min Sub Matter Collected 490 | 286 184 20 . Remotely . | . . . . Salvage Created 1109 | 69 930 110 . Parts 65 | 3 60 2 . Haulers Intercepted 1 | . 1 . . Recyclers Shooed . | . . . . Parts Field Recycled . | . . . . Retrieved Matter . | . . . . Parts Self-Destructed . | . . . . Prevented . | . . . . Parts Restored . | . . . . Kills | -11 -10 -10 -10 ------- Run | Yrd Mat Min Sub Combat Hostiles Destroyed 23 | . 21 2 . Guns 22 | . 21 1 . Classes Destroyed 8 | 2 6 . . Builder 1 | . 1 . . Tunneler 1 | 1 . . . Hauler 1 | . 1 . . Recycler 1 | 1 . . . Operator 2 | . 2 . . Watcher 3 | . 3 . . Swarmer 6 | . 6 . . Grunt 17 | . 15 2 . Best Kill Streak 4 | 2 4 2 . Combat Bots Only 4 | . 4 2 . Max Kills in Single Turn 1 | 1 1 1 . Gunslinging . | . . . . Exploded . | . . . . Melee . | . . . . Uniques/NPCs Destroyed . | . . . . Combat | -11 -10 -10 -10 -------- Run | Yrd Mat Min Sub Hostile Shots Fired 114 | . 77 24 13 Missed 31 | . 20 7 4 Hits 83 | . 57 17 9 Melee 5 | . . 5 . Projectile 78 | . 57 12 9 AOE 3 | . . . 3 Damage Taken 1118 | . 593 295 230 Core 260 | . 121 89 50 Absorbed by Shields . | . . . . Redirected to Shielding 7 | . . 7 . Regen/Repaired (Parts) 210 | . 210 . . Core Remaining (%) 100 | 100 . . . Volleys Fired 70 | . 61 4 5 Largest 2 | . 2 2 1 Hottest 90 | . 90 90 60 Shots Fired 135 | . 122 8 5 Gun 130 | . 122 8 . Cannon 5 | . . . 5 Launcher . | . . . . Special . | . . . . Kinetic 45 | . 44 . 1 Thermal 4 | . . . 4 Explosive . | . . . . Electromagnetic 86 | . 78 8 . Robot Hit Streak 10 | . 9 10 1 Robot Miss Streak 4 | . 4 . 1 Penetration Max . | . . . . Secondary Targets . | . . . . Shots Hit Robots 86 | . 76 8 2 Core Hits 38 | . 36 2 . Critical Kills . | . . . . Critical Parts Destroyed . | . . . . Critical Strikes 2 | . 2 . . Corrupt 2 | . 2 . . Melee Attacks . | . . . . Impact . | . . . . Slashing . | . . . . Piercing . | . . . . Sneak Attacks . | . . . . Combat Hostiles . | . . . . Follow-up Attacks . | . . . . Damage Inflicted 1375 | 14 1191 135 35 Guns 1241 | . 1113 128 . Cannons 35 | . . . 35 Explosions 48 | . 48 . . Melee . | . . . . Ramming 51 | 14 30 7 . Kinetic 257 | . 257 . . Thermal 83 | . 48 . 35 Explosive . | . . . . Electromagnetic 984 | . 856 128 . Impact . | . . . . Slashing . | . . . . Piercing . | . . . . Highest Corruption . | . . . . Average Corruption . | . . . . Corruption Purged . | . . . . Corruption Blocked . | . . . . Overload Shots . | . . . . Overflow Damage 18 | . 18 . . Projectiles . | . . . . Explosions 18 | . 18 . . Melee . | . . . . Knockbacks 2 | 1 1 . . Impact 2 | 1 1 . . Kinetic . | . . . . Secondary . | . . . . Self-Inflicted Damage . | . . . . Shots . | . . . . Rammed 14 | 2 10 2 . Targets Rammed 17 | 4 11 2 . Kicked . | . . . . Crushed 3 | 2 1 . . Highest Temperature 216 | . 216 144 . Average Temperature 65 | . 64 75 . Received Heat Transfer 303 | . 219 48 36 Siege Activations . | . . . . Martial Activations . | . . . . Shielding Activations . | . . . . Robots Disrupted . | . . . . Combat Hostiles . | . . . . Robots Corrupted 1 | . . 1 . Combat Hostiles 1 | . . 1 . Parts Fried 2 | . 1 1 . Impact Corruptions . | . . . . Robots Melted . | . . . . Combat Hostiles . | . . . . Parts Melted . | . . . . Heat Transferred 124 | . 50 . 74 Parts Sabotaged . | . . . . Parts Stolen . | . . . . Parts Stripped . | . . . . Power Chain Reactions 1 | . 1 . . Alert | -11 -10 -10 -10 ------- Run | Yrd Mat Min Sub Maximum Alert Level . | . . . . Low Security (%) 100 | 100 100 100 . Level 1 . | . . . . Level 2 . | . . . . Level 3 . | . . . . Level 4 . | . . . . Level 5 . | . . . . High Security . | . . . . Max Security . | . . . . Peak Influence 193 | 5 193 74 . Initial 54 | . . 54 . Average 85 | 1 120 14 . Influence Increases 675 | 10 615 50 . Destroy 0b10 Robot/C 460 | . 420 40 . Destroy 0b10 Robot/NC 45 | 10 35 . . Destroy Leader 98 | . 88 10 . Successful Hack 10 | . 10 . . Destroy Structure 2 | . 2 . . Lose Combat Pursuer 60 | . 60 . . Influence Decreases 675 | 10 476 189 . Entered New Map 85 | . . 85 . Time Decay 570 | 10 456 104 . Lost Part 20 | . 20 . . Squads Dispatched 4 | . 4 . . Investigation 3 | . 3 . . Extermination . | . . . . Reinforcement 1 | . 1 . . Assault . | . . . . Garrison . | . . . . Intercept . | . . . . Searches Triggered . | . . . . Construction Impeded . | . . . . Haulers Reinforced . | . . . . Active Scanning Responses . | . . . . Cargo Convoy Interrupts . | . . . . Stealth | -11 -10 -10 -10 --------- Run | Yrd Mat Min Sub Distress Signals 2 | . 1 1 . Communications Jammed . | . . . . Distress Signals . | . . . . Times Spotted 54 | . 36 15 3 Peak Tracking Total 13 | . 6 13 1 Tactical Retreats 5 | . 4 1 . Traps | -11 -10 -10 -10 ------- Run | Yrd Mat Min Sub Traps Triggered 2 | . 2 . . Indirectly . | . . . . Trap Hack Attempts . | . . . . Triggered . | . . . . Disarmed . | . . . . Reprogrammed . | . . . . Reused . | . . . . Traps Extracted . | . . . . Installed . | . . . . Triggered . | . . . . Machines | -11 -10 -10 -10 ---------- Run | Yrd Mat Min Sub Machines Disabled . | . . . . Max in Single Turn . | . . . . Machines Repaired . | . . . . Machines Dismantled . | . . . . Machines Sabotaged . | . . . . Overloaded Fab Kills . | . . . . Hacking | -11 -10 -10 -10 --------- Run | Yrd Mat Min Sub Machines Accessed 7 | . 7 . . Terminals 6 | . 6 . . Fabricators . | . . . . Repair Stations 1 | . 1 . . Recycling Units . | . . . . Scanalyzers . | . . . . Garrison Access . | . . . . Total Hacks 18 | . 18 . . Successful 9 | . 9 . . Failed 9 | . 9 . . Catastrophic 1 | . 1 . . Database Lockouts . | . . . . Manual 15 | . 15 . . Terminals 13 | . 13 . . Fabricators . | . . . . Repair Stations 5 | . 5 . . Recycling Units . | . . . . Scanalyzers . | . . . . Garrison Access . | . . . . Terminal Hacks 4 | . 4 . . Record 1 | . 1 . . Robot Analysis 3 | . 3 . . Fabricator Hacks . | . . . . Repair Station Hacks 4 | . 4 . . Scan Component 2 | . 2 . . Repair 2 | . 2 . . Recycling Unit Hacks . | . . . . Scanalyzer . | . . . . Garrison Access Hacks . | . . . . Unauthorized Hacks 1 | . 1 . . Terminals 1 | . 1 . . Botnet 1 | . 1 . . Fabricators . | . . . . Repair Stations . | . . . . Recycling Units . | . . . . Scanalyzers . | . . . . Garrison Access . | . . . . Data Cores Recovered 1 | . 1 . . Used . | . . . . Hacking Detections 5 | . 5 . . Full Trace Events 2 | . 2 . . Feedback Events . | . . . . Feedback Blocked . | . . . . Robot Schematics Acquired . | . . . . Robots Built . | . . . . Authchips . | . . . . Time . | . . . . Total Robot Build Rating . | . . . . Part Schematics Acquired . | . . . . Parts Built . | . . . . Authchips . | . . . . Time . | . . . . Total Part Build Rating . | . . . . Part Studies Acquired . | . . . . Parts Repaired 2 | . 2 . . Time 52 | . 52 . . Parts Recycled . | . . . . Recycled Matter . | . . . . Retrieved Matter . | . . . . Retrieved Components . | . . . . Parts Scanalyzed . | . . . . Part Schematics Acquired . | . . . . Parts Damaged . | . . . . Bothacking | -11 -10 -10 -10 ------------ Run | Yrd Mat Min Sub Used RIF Installer . | . . . . Robots Hacked . | . . . . Non-combat . | . . . . Combat . | . . . . Robot Hacks Applied . | . . . . Relay Couplers Released . | . . . . Fabnet Peak Effective % . | . . . . Robots Rewired . | . . . . Allies Hacked . | . . . . Hacks Repelled . | . . . . Allies | -11 -10 -10 -10 -------- Run | Yrd Mat Min Sub Total Allies . | . . . . Largest Group . | . . . . Highest-Rated Group . | . . . . Highest-Rated Ally . | . . . . Total Orders . | . . . . Ally Attacks . | . . . . Total Damage . | . . . . Kills . | . . . . Allies Corrupted . | . . . . Allies Melted . | . . . . Intel | -11 -10 -10 -10 ------- Run | Yrd Mat Min Sub Active Infowar (turns) 2036 | 34 1364 545 93 Sensors 789 | . 789 . . Terrain 580 | 5 575 . . Seismic 667 | 29 . 545 93 Robot Analysis Total 3 | . 3 . . Derelict Logs Recovered 1 | . . 1 . Drone Launches . | . . . . Drone Recoveries . | . . . . Exploration | -11 -10 -10 -10 ------------- Run | Yrd Mat Min Sub Turns Passed 2356 | 78 1378 583 317 Spaces Moved 1201 | 39 634 345 183 Core 9 | 9 . . . Treads 1192 | 30 634 345 183 Legs . | . . . . Wheels . | . . . . Hover . | . . . . Flight . | . . . . Fastest Speed 50 | 50 160 160 160 Average Speed 159 | 142 160 160 160 Slowest Speed 160 | 160 160 160 160 Overloaded Moves . | . . . . Propulsion Burnouts . | . . . . Robots Hopped . | . . . . Potential Cave-ins . | . . . . Cave-ins Triggered . | . . . . Exploration Rate (%) 44 | 3 87 65 21 Regions Visited 3 Branch Regions 2 Pre-discovered Areas . | . . . . Known Exits Taken . | . . . . Unknown Exits Taken 3 | 1 1 1 . Scrap Searched 2 | . . 2 . Spaces Dug . | . . . . Terrain Destroyed 2 | . 2 . . Melee . | . . . . Projectile . | . . . . AOE 2 | . 2 . . Terrain Rammed . | . . . . Walls Destroyed . | . . . . Machines Disabled . | . . . . Actions | -11 -10 -10 -10 --------- Run | Yrd Mat Min Sub Total 1498 | 55 874 367 202 Wait 150 | . 135 8 7 Move 1198 | 38 633 344 183 Hop . | . . . . Pick Up 25 | 4 15 5 1 Fast Attach 12 | 7 4 . 1 Attach 4 | . 2 . 2 Detach . | . . . . Swap 11 | 2 5 2 2 Drop 11 | . 8 2 1 Fire 70 | . 61 4 5 Melee . | . . . . Ram . | . . . . Kick . | . . . . Crush 17 | 4 11 2 . Escape Stasis . | . . . . Rewire . | . . . . Trap . | . . . . Miscellaneous . | . . . . Route ------- -11/Scrapyard -10/Materials (discovered 3 exits: [*Mat x2] / [*Min]) -10/Mines -10/Subcaves History --------- Turn | Location | Event 12 | -11/Scrapyard | Discovered new exit (range 16) 79 | -11/Scrapyard | Entered Materials 305 | -10/Materials | Build established: Mutant 855 | -10/Materials | Discovered new exit (range 16) 921 | -10/Materials | Repaired Lgt. Treads 948 | -10/Materials | Repaired Lgt. Treads 1079 | -10/Materials | Derelicts attacked the area 1140 | -10/Materials | Discovered new exit (range 11) 1417 | -10/Materials | Discovered new exit (range 16) 1457 | -10/Materials | Entered Mines 1461 | -10/Mines | Met a Derelict bent on vengeance 1525 | -10/Mines | Core integrity fell below 50% 1548 | -10/Mines | Assembled infested the area 1553 | -10/Mines | Assisted by a Guerilla fighting off Assembled 1880 | -10/Mines | Discovered new exit (range 9) 2035 | -10/Mines | Core integrity fell below 20% 2040 | -10/Mines | Entered Subcaves 2127 | -10/Subcaves | Ambushed by swarm of Subdwellers 2170 | -10/Subcaves | Lost 3 allies 2296 | -10/Subcaves | Shifting Twisted Machinery released Battle Rifle 2357 | -10/Subcaves | Destroyed by Y-45 Defender with Heavy Assault Rifle Last Messages --------------- AMBIENT_HEAT=-10 GOAL=ESCAPE 02041_ AH-ZBC(h): "Hey you don't look like the usual menacing locals. I'm on point searching for advanced tech we've heard is being developed in secret down here, seen anything like that?" 02047_ AH-ZBC(h) drops a Scrap Shield: "Protect yourself with this!" 02052_ Acquired Scrap Shield. 02127_ AH-ZBC(h): "The Subs are coming!" 02152_ 0S-1YT(R) destroyed. 02252_ 9Q-CYV(z): "She is not going to be happy we haven't found any suitable candidates yet." 02295_ HV Slug penetrates Wall. Battle Rifle falls loose from the Twisted Machinery. 02296_ 46-6NR(R): "MADSUB!" 02299_ 46-6NR(R) suffers critical hit (Destroy). 02299_ 46-6NR(R) destroyed. 02311_ Dropped Lgt. Treads. 02311_ Acquired Spk. Treads. 02342_ Ion Engine destroyed. 02350_ AH-ZBC(h) destroyed. Map ----- +----------------------------------------------------+ | ?????????????????????????????????????????????????? | | ?????????????????????????????????????????????????? | | ?????????????????????????????????????????????????? | | ?????????????????????????????????????????????????? | | ?????????????????????????????????????????????????? | | ?????????????????????????????????????????????????? | | ?????????????????????????????????????????????????? | | ???????????????????????? ????????????????????? | | ??????????????????????# ??????????????????? | | ??????????????????????# ???????????????? | | ?????????????????????? #???????????????? | | ??????????????????????? "???????????????? | | ??????????????????????? ###?????????????? | | ??????????????????????? #?????????????? | | ???????????????????????#* #?????????????? | | ???????????????????????#% #?????????????? | | ????????????????????????[ #?????????????? | | ???????????????????????? #?????????????? | | ????????????????????????# #?????????????? | | ???????????????????????## #?????????????? | | ???????????????????????# ????????????????? | | ???????????????????????# = #??????????????????? | | ??????????????????????## =%[ #???????????????????? | | ?????????????? ??????# #???????????????????? | | ??????????????# ?????## ##???????????????????? | | ????????????##" "##??# @###????????????????????? | | ?#?????????# ??? " #### #?????????????????????? | | ## ? #?""? ????? # #?????????????????????? | | # """""""## ??????# # #?????????????????????? | | ? """ ??????# ##????????????????????? | | # ??? ["" ?????## ##???????????????????? | | # ?????# " ####### #???????????????????? | | #?????# "## ## #???????????????????? | | # ###### %&= ########???????????????????? | | # # #" % #??????????????????????????? | | # # ! #??????????????????????????? | | # # ##??????????????????????????? | | #???????????????????????????? | | # ##???????????????????????????? | | ## ##????????????????????????????? | | ?## #?????????????????????????????? | | ??# #"""" #????????????????????????????? | | ### ### " #???????????????????????????? | | # ## "#" " #??????????????????????????? | | ## ## #### " #?????????????????????????? | | ?# ## #??#### ????????????????????????? | | ### ## #?????# ???????????????????????? | | #??????# ???????????????????????? | | ## #???????# ##???????????????????????? | | ## # ##????????## #????????????????????????? | +----------------------------------------------------+ Best States ------------- Heat Dissipation 25 Energy Generation 10 Energy Capacity 250 Matter Stores 300 Matter Capacity 300 Sight Range 16 Robot Scan Range 14 Terrain Scan Range 16 Terrain Scan Density 10 Propulsion Shielding 33 Utility Shielding 33 Evasion (%) 40 Recoil Reduction 2 Item Schematics ----------------- None Robot Schematics ------------------ None Fabricated ------------ Nothing Repaired ---------- Lgt. Treads | 20% | -10/Materials Lgt. Treads | 30% | -10/Materials Studied --------- None Alien Tech Used ----------------- None Achievements -------------- None Challenges ------------ None Game ------ Seed HoverResetTrident Manual? 0 Play Time 00:31:39 Cumulative 25.2 hours Start 2026.03.23 @ 20:34:19 End 2026.03.24 @ 09:21:52 Sessions 2 Manual Loads 0 Difficulty Rogue Special Mode None Game No. 31 Rogue 27 Adventurer 4 Explorer 0 Win Type - Total 1 Types 1/0/0/0/0/0/0/0/0/0 Lore% 8 Gallery% 20 Achievement% 14 Wizard Run 0 Options --------- Layout 0 ASCII 0 Keyboard 1 Movement Numpad Keybinds 1 Fullscreen 2 Font 24/Tamsyn Map View 76x50 Zoom Use 86% Tactical HUD 1 Map Filters NONE Filters NONE Steam 1 RUN: 01ddc155-ea29-4b5e-bae6-cb089363b201